bitfinex/quotes_ETHUSD_20250823
["timestamp","ask_amount","ask_price","bid_price","bid_amount"]
[1755928842809,6.19156077,4756.7,4756.6,0.004]
[1755928843195,6.30986802,4756.7,4756.6,0.004]
[1755928843374,13.15556077,4756.7,4756.6,0.004]
[1755928843574,13.27384011,4756.7,4756.6,0.004]
[1755928845293,13.84141727,4756.7,4756.6,0.004]
[1755928846319,13.84241727,4756.7,4756.6,0.004]
[1755928846533,13.27484011,4756.7,4756.6,0.004]
[1755928846679,16.81784011,4756.7,4756.6,0.004]
[1755928848700,16.817594,4756.7,4756.6,0.004]
[1755928849018,16.81747142,4756.7,4756.6,0.004]
[1755928849996,12.82737142,4756.7,4756.6,0.004]
[1755928850218,12.42091466,4756.7,4756.6,0.2983]
[1755928850425,15.96291466,4756.7,4756.6,0.004]
[1755928850922,16.25121466,4756.7,4756.6,0.004]
[1755928852182,15.96291466,4756.7,4756.6,0.2983]
[1755928852720,15.76598673,4756.7,4756.6,0.2983]
[1755928852922,15.312037,4756.7,4756.6,0.2983]
[1755928853282,12.2278,4756.7,4756.6,0.2983]
[1755928853682,12.2278,4756.7,4756.6,0.7321]
[1755928854084,12.2278,4756.7,4756.6,0.2983]
[1755928856438,0.1058,4756.7,4756.6,0.7321]
[1755928856636,0.1058,4756.7,4756.6,0.2983]
[1755928856986,0.001,4756.7,4756.6,0.2983]
[1755928857215,0.1058,4756.7,4756.6,0.2983]
[1755928858501,3.6478,4756.7,4756.6,0.2983]
[1755928858694,3.6478,4756.7,4756.6,0.004]
[1755928859220,3.6478,4756.7,4756.6,0.2983]
[1755928860331,3.6478,4756.7,4756.6,0.004]
[1755928860332,4.371,4756.7,4756.6,0.004]
[1755928860836,3.6478,4756.7,4756.6,0.2983]
[1755928861193,3.6478,4756.7,4756.6,0.7321]
[1755928861907,3.6478,4756.7,4756.6,0.2983]
[1755928862096,0.1058,4756.7,4756.6,0.2983]
[1755928862617,0.829,4756.7,4756.6,0.004]
[1755928863188,1.28266858,4756.7,4756.6,0.004]
[1755928864026,1.44004087,4756.7,4756.6,0.004]
[1755928865635,7.98104087,4756.7,4756.6,0.004]
[1755928866902,8.17803148,4756.7,4756.6,0.004]
[1755928867406,8.29623798,4756.7,4756.6,0.004]
[1755928869338,7.57303798,4756.7,4756.6,0.004]
[1755928869538,7.45483148,4756.7,4756.6,0.004]
[1755928869751,7.74313148,4756.7,4756.6,0.004]
[1755928869936,7.45483148,4756.7,4756.6,0.2983]
[1755928870246,7.25784087,4756.7,4756.6,0.2983]
[1755928871666,4.10046858,4756.7,4756.6,0.2983]
[1755928871877,3.6468,4756.7,4756.6,0.7321]
[1755928872182,3.6468,4756.7,4756.6,0.2983]
[1755928878879,0.1058,4756.7,4756.6,0.7536]
[1755928879044,0.001,4756.7,4756.6,0.7536]
[1755928882255,0.001,4756.7,4756.6,0.2983]
[1755928882463,0.1058,4756.7,4756.6,0.004]
[1755928882858,0.1058,4756.7,4756.6,0.2935]
[1755928884493,0.1058,4756.7,4756.6,0.004]
[1755928884699,0.4048,4756.7,4756.6,0.004]
[1755928885005,0.8402,4756.7,4756.6,0.004]
[1755928886490,0.4048,4756.7,4756.6,0.004]
[1755928887416,0.4048,4756.7,4756.6,0.2935]
[1755928887417,0.1058,4756.7,4756.6,0.2935]
[1755928888111,3.4048,4756.7,4756.6,0.004]
[1755928888310,1.29400645,4756.7,4756.6,0.004]
[1755928888521,0.1058,4756.7,4756.6,0.2935]
[1755928889692,0.1058,4756.7,4756.6,0.004]
[1755928889693,0.4048,4756.7,4756.6,0.004]
[1755928889999,0.8402,4756.7,4756.6,0.004]
[1755928891998,4.3792,4756.7,4756.6,0.004]
[1755928894074,7.3792,4756.7,4756.6,0.004]
[1755928894283,7.8330395,4756.7,4756.6,0.004]
[1755928896708,8.7963737,4756.7,4756.6,0.004]
[1755928896911,8.88064715,4756.7,4756.6,0.004]
[1755928897426,17.76864715,4756.7,4756.6,0.004]
[1755928897727,0.66,4756.4,4756.3,0.004]
[1755928897894,17.33088666,4756.4,4756.3,0.004]
[1755928898093,17.98173605,4756.4,4756.3,0.004]
[1755928898301,17.2824497,4756.4,4756.3,0.004]
[1755928898594,17.3667127,4756.4,4756.3,0.004]
[1755928898818,16.7067127,4756.4,4756.3,0.004]
[1755928899410,17.46241264,4756.4,4756.3,0.004]
[1755928899917,17.46228979,4756.4,4756.3,0.004]
[1755928901314,16.70658985,4756.4,4756.3,0.004]
[1755928902907,16.58809036,4756.4,4756.3,0.004]
[1755928903105,16.70604307,4756.4,4756.3,0.004]
[1755928903498,16.70598992,4756.4,4756.3,0.004]
[1755928905018,17.27185587,4756.4,4756.3,0.004]
[1755928905411,16.70598992,4756.4,4756.3,0.004]
[1755928905800,16.58803721,4756.4,4756.3,0.004]
[1755928906123,17.2717731,4756.4,4756.3,0.004]
[1755928906502,18.0365731,4756.4,4756.3,0.004]
[1755928906686,19.57313755,4756.4,4756.3,0.004]
[1755928906885,21.59283749,4756.4,4756.3,0.004]
[1755928907500,20.83713755,4756.4,4756.3,0.004]
[1755928907786,15.19570715,4756.4,4756.3,0.004]
[1755928907985,20.83713755,4756.4,4756.3,0.004]
[1755928910224,21.1661343,4756.4,4756.3,0.004]
[1755928910724,21.92007078,4756.4,4756.3,0.004]
[1755928911832,0.66,4756.0,4754.8,0.02]
[1755928912036,7.12584491,4755.9,4754.8,0.4629]
[1755928912240,8.04888441,4755.9,4754.8,0.4629]
[1755928912440,8.13315241,4755.9,4754.8,0.4629]
[1755928912641,8.1331775,4755.9,4755.3,0.004]
[1755928913708,8.25101169,4755.9,4755.3,0.004]
[1755928914235,17.22730085,4755.9,4755.3,0.004]
[1755928914441,17.69650085,4755.9,4755.3,0.004]
[1755928916442,17.13101169,4755.9,4755.3,0.004]
[1755928917349,11.856,4755.8,4755.3,0.004]
[1755928917516,13.37894369,4755.8,4755.3,0.004]
[1755928917918,13.46321869,4755.8,4755.3,0.004]
[1755928918134,13.46328248,4755.8,4755.3,0.004]
[1755928918318,15.56597813,4755.8,4755.3,0.004]
[1755928919415,13.74801896,4755.8,4755.3,0.004]
[1755928919617,14.32338248,4755.8,4755.3,0.004]
[1755928919928,14.98338248,4755.8,4755.7,0.2988]
[1755928920332,14.98338248,4755.8,4755.7,0.004]
[1755928920553,15.26908248,4755.8,4755.7,0.004]
[1755928920731,14.32338248,4755.8,4755.7,0.2988]
[1755928920930,14.42840846,4755.8,4755.7,0.2988]
[1755928921225,14.42846789,4755.8,4755.7,0.2988]
[1755928921454,14.99474768,4755.8,4755.7,0.2988]
[1755928921752,14.79813161,4755.8,4755.7,0.2988]
[1755928921926,14.99478003,4755.8,4755.7,0.2988]
[1755928922126,14.99478521,4755.8,4755.7,0.2988]
[1755928922340,14.42855715,4755.8,4755.7,0.2988]
[1755928923624,14.42882485,4755.8,4755.7,0.2988]
[1755928924460,14.42882485,4755.8,4755.7,0.004]
[1755928925060,14.42882485,4755.8,4755.7,0.2988]
[1755928925758,15.46846133,4755.8,4755.7,0.004]
[1755928925966,15.18276133,4755.8,4755.7,0.2988]
[1755928926160,14.42882485,4755.8,4755.7,0.2988]
[1755928926367,15.18276133,4755.8,4755.7,0.2988]
[1755928927478,14.42882485,4755.8,4755.7,0.004]
[1755928928789,15.18372485,4755.8,4755.7,0.004]
[1755928929151,14.71452485,4755.8,4755.7,0.004]
[1755928929451,14.71552485,4755.8,4755.7,0.004]
[1755928929666,14.71594151,4755.8,4755.7,0.004]
[1755928929889,14.71619165,4755.8,4755.7,0.004]
[1755928930257,14.71619707,4755.8,4755.7,0.004]
[1755928930673,11.64892314,4755.8,4755.7,0.2988]
[1755928930848,15.18692314,4755.8,4755.7,0.2988]
[1755928931052,14.42949707,4755.8,4755.7,0.2988]
[1755928931388,7.89149707,4755.8,4755.7,0.7417]
[1755928931563,4.0976395,4755.8,4755.7,0.7417]
[1755928931759,0.1058,4755.8,4755.7,0.7417]
[1755928931961,0.001,4755.8,4755.7,0.76272739]
[1755928932186,0.001,4755.8,4755.7,0.8465]
[1755928933193,0.001,4755.8,4755.7,0.7417]
[1755928933690,0.1058,4755.8,4755.7,0.7417]
[1755928933862,3.1058,4755.8,4755.7,0.2988]
[1755928934071,3.55946127,4755.8,4755.7,0.2988]
[1755928935913,0.55946127,4755.8,4755.7,0.2988]
[1755928936067,3.6438,4755.8,4755.7,0.7417]
[1755928938601,3.6438,4755.8,4755.7,0.2988]
[1755928941203,3.6438,4755.8,4755.7,0.7541]
[1755928941672,3.6438,4755.8,4755.7,0.2988]
[1755928941673,0.1058,4755.8,4755.7,0.2988]
[1755928941872,0.1058,4755.8,4755.7,0.7541]
[1755928942876,0.001,4755.8,4755.7,0.8589]
[1755928948401,0.001,4755.8,4755.7,1.8678666]
[1755928949004,0.001,4755.8,4755.7,1.88889399]
[1755928949609,0.001,4755.8,4755.7,1.8678666]
[1755928954943,0.001,4755.8,4755.7,1.4125666]
[1755928955243,0.001,4755.8,4755.7,1.8678666]
[1755928960731,0.001,4755.8,4755.7,2.4230666]
[1755928960913,0.001,4756.7,4755.7,2.0725666]
[1755928961113,0.001,4756.7,4756.6,9.22276603]
[1755928961309,0.001,4756.7,4756.6,11.14736603]
[1755928961509,0.001,4756.7,4756.6,14.68236603]
[1755928961746,0.001,4756.7,4756.6,14.76656603]
[1755928961967,0.001,4756.7,4756.6,16.74405263]
[1755928962749,0.001,4756.7,4756.6,16.28875263]
[1755928962925,0.001,4756.7,4756.6,17.40405263]
[1755928963331,0.001,4756.7,4756.6,20.40405263]
[1755928967831,0.001,4756.7,4756.6,7.1909866]
[1755928968031,0.001,4756.7,4756.6,18.42656603]
[1755928968827,0.001,4756.7,4756.6,18.88006603]
[1755928970450,0.001,4756.7,4756.6,18.42656603]
[1755928970963,0.001,4756.7,4756.6,18.42556603]
[1755928971165,0.001,4756.7,4756.6,14.68776603]
[1755928971375,0.001,4756.7,4756.6,19.69054263]
[1755928971759,0.001,4756.7,4756.6,19.99794263]
[1755928972765,0.001,4756.7,4756.6,20.45144263]
[1755928976243,5.001,4756.7,4756.6,20.45144263]
[1755928978045,0.001,4757.6,4756.7,3.66]
[1755928978246,0.001,4757.6,4757.3,13.19016603]
[1755928978601,0.001,4757.6,4757.4,3.66]
[1755928978750,0.001,4757.6,4757.5,9.13741944]
[1755928978944,0.001,4757.6,4757.5,9.6747]
[1755928979474,0.4527,4758.8,4757.6,3.66]
[1755928979475,0.021,4758.8,4757.6,3.66]
[1755928979674,0.021,4758.8,4758.1,13.29496603]
[1755928979875,0.021,4758.8,4758.1,16.82796603]
[1755928980253,0.021,4758.8,4758.1,17.28146603]
[1755928982680,0.4327,4758.7,4758.1,16.82796603]
[1755928982864,0.4327,4758.7,4758.1,14.97776263]
[1755928983058,0.4327,4758.7,4758.1,18.20336263]
[1755928983059,0.7318,4758.2,4758.1,18.20336263]
[1755928983259,0.7318,4758.2,4758.1,15.20336263]
[1755928983477,0.7318,4758.2,4758.1,15.83460863]
[1755928984098,0.001,4758.2,4758.1,16.14200863]
[1755928985220,0.001,4758.2,4758.1,19.14200863]
[1755928985399,0.001,4758.2,4758.1,9.6118426]
[1755928985593,0.7318,4758.2,4758.1,9.6118426]
[1755928986211,0.7318,4758.2,4758.1,6.0788426]
[1755928986518,0.7318,4758.2,4758.1,9.6108426]
[1755928986834,0.7318,4758.2,4758.1,5.4188426]
[1755928986986,0.7318,4758.2,4758.1,6.6368]
[1755928987385,0.7318,4758.2,4758.1,3.1048]
[1755928987586,0.7318,4758.2,4758.1,6.6368]
[1755928987802,0.7318,4758.2,4758.1,3.6368]
[1755928988329,0.7318,4758.2,4758.1,0.1048]
[1755928988541,0.7318,4758.2,4758.1,3.7804099]
[1755928991796,0.7318,4758.2,4758.1,0.1048]
[1755928992186,0.7318,4758.2,4757.8,0.02]
[1755928992387,0.4317,4758.1,4757.9,3.6368]
[1755928992594,0.2991,4758.0,4757.9,0.1048]
[1755928992893,0.2991,4758.0,4757.9,3.6368]
[1755928993297,0.7308,4758.0,4757.9,3.6368]
[1755928993503,0.7308,4758.0,4757.9,3.532]
[1755928995491,0.7308,4758.0,4757.9,4.05938186]
[1755928997027,0.7308,4758.0,4757.9,3.532]
[1755928998013,0.2991,4758.0,4757.9,3.532]
[1755928999499,0.001,4758.2,4757.9,3.532]
[1755928999917,0.4378,4758.2,4757.9,3.532]
[1755929000227,0.4378,4758.2,4758.1,0.1048]
[1755929000228,0.001,4758.2,4758.1,0.1048]
[1755929000433,0.7283,4758.2,4758.1,3.6368]
[1755929000629,0.2915,4758.2,4758.1,4.00088]
[1755929000830,0.001,4758.2,4758.1,4.00088]
[1755929001532,0.001,4758.2,4758.1,4.30348]
[1755929003503,0.001,4758.2,4758.1,4.96348]
[1755929003729,0.001,4758.2,4758.1,5.39538]
[1755929004054,0.001,4758.2,4758.1,8.39538]
[1755929006656,0.001,4758.2,4758.1,8.479538]
[1755929006856,0.001,4758.2,4758.1,8.047638]
[1755929007241,0.001,4758.2,4758.1,8.046638]
[1755929007926,0.001,4758.2,4758.1,7.744038]
[1755929008126,0.2915,4758.2,4758.1,7.744038]
[1755929008532,0.7283,4758.2,4758.1,7.744038]
[1755929009327,0.001,4758.2,4758.1,7.744038]
[1755929009729,0.001,4758.2,4758.1,8.046638]
[1755929013444,0.001,4758.2,4758.1,8.478538]
[1755929013756,0.001,4758.2,4758.1,4.515638]
[1755929013962,0.001,4758.2,4758.1,8.045638]
[1755929014153,0.001,4758.2,4758.1,8.477538]
[1755929016375,0.001,4758.2,4758.1,8.045638]
[1755929021470,0.001,4758.2,4758.1,4.213038]
[1755929021634,0.001,4758.2,4758.1,7.742038]
[1755929025653,0.001,4758.2,4758.1,4.213038]
[1755929025845,0.001,4758.2,4758.1,7.76305479]
[1755929026045,0.001,4758.2,4758.1,7.742038]
[1755929026350,0.001,4758.2,4758.1,4.213038]
[1755929026663,0.001,4758.2,4758.1,7.742038]
[1755929029440,0.001,4758.2,4758.1,8.044638]
[1755929034579,0.001,4758.2,4758.1,4.515638]
[1755929034788,0.001,4758.2,4758.1,8.043638]
[1755929041951,0.001,4758.2,4758.1,4.515638]
[1755929042182,0.001,4758.2,4758.1,7.741038]
[1755929042361,0.001,4758.2,4758.1,8.051938]
[1755929047675,0.001,4758.2,4758.1,10.122038]
[1755929048188,0.001,4758.2,4758.1,9.666938]
[1755929052462,0.001,4758.2,4758.1,10.4234173]
[1755929053202,0.001,4758.3,4758.2,3.9613793]
[1755929053491,0.001,4758.3,4758.2,6.21713738]
[1755929053663,0.001,4758.3,4758.2,6.19612103]
[1755929054375,0.001,4758.3,4758.2,5.74102103]
[1755929054578,0.001,4758.3,4758.2,5.82516803]
[1755929056376,0.001,4758.3,4758.2,14.43565476]
[1755929056607,0.7837,4758.3,4758.2,2.21288873]
[1755929056827,0.7837,4758.3,4758.2,5.07888873]
[1755929056988,0.7837,4758.3,4758.2,8.07888873]
[1755929057303,0.7837,4758.3,4758.2,8.73888873]
[1755929057514,0.001,4758.3,4758.2,8.73888873]
[1755929057734,0.001,4758.3,4758.2,9.04978873]
[1755929058133,0.001,4758.3,4758.2,9.35116803]
[1755929058478,0.001,4758.3,4758.2,8.73888873]
[1755929059898,0.001,4758.3,4758.2,9.04668873]
[1755929062107,0.001,4758.7,4758.3,13.7383793]
[1755929062292,0.001,4758.7,4758.6,0.9678]
[1755929062494,0.001,4758.7,4758.6,7.5986]
[1755929062693,0.001,4758.7,4758.6,7.682742]
[1755929063985,0.001,4759.2,4758.6,7.682742]
[1755929063986,0.001,4759.2,4758.7,3.66]
[1755929064189,0.001,4759.2,4759.1,13.19056603]
[1755929064391,0.001,4759.2,4759.1,18.43636603]
[1755929064622,0.001,4759.2,4759.1,18.52049803]
[1755929067217,0.001,4759.2,4759.1,18.83731397]
[1755929067729,0.001,4759.2,4759.1,15.31131397]
[1755929067898,0.001,4759.2,4759.1,20.58163317]
[1755929068618,0.001,4759.2,4759.1,20.26481723]
[1755929070413,0.02,4759.8,4759.2,3.66]
[1755929070613,0.02,4759.8,4759.7,13.19056603]
[1755929070920,0.02,4759.8,4759.7,18.18412263]
[1755929071127,0.3073,4759.8,4759.7,18.18412263]
[1755929071433,0.02,4759.8,4759.7,18.93242263]
[1755929071733,0.02,4759.8,4759.7,18.9170673]
[1755929071880,0.7478,4759.8,4759.7,18.62462263]
[1755929075703,0.02,4759.8,4759.7,18.93242263]
[1755929077183,0.02,4759.8,4759.7,18.73232673]
[1755929077390,0.02,4759.8,4759.7,18.62462263]
[1755929077703,0.7478,4759.8,4759.7,18.62462263]
[1755929079266,0.7488,4759.8,4759.7,18.62462263]
[1755929080743,0.021,4759.8,4759.7,18.62462263]
[1755929081147,0.3083,4759.8,4759.7,18.62462263]
[1755929081347,0.7488,4759.8,4759.7,18.62462263]
[1755929082257,0.021,4759.8,4759.7,15.09962263]
[1755929082441,0.021,4759.8,4759.7,18.93142263]
[1755929083029,0.021,4759.8,4759.7,19.2238673]
[1755929085550,0.021,4760.8,4759.7,19.2238673]
[1755929085865,0.021,4760.8,4760.7,12.88276603]
[1755929086158,0.3083,4760.8,4760.7,18.12456603]
[1755929086457,0.7488,4760.8,4760.7,18.12456603]
[1755929086855,0.021,4760.8,4760.7,18.43236603]
[1755929087023,0.021,4760.8,4760.7,19.96780263]
[1755929087425,0.3083,4760.8,4760.7,19.96780263]
[1755929087624,0.3083,4760.8,4760.7,20.59859563]
[1755929087829,0.021,4760.8,4760.7,20.90639563]
[1755929088031,0.1048,4763.2,4760.7,20.90639563]
[1755929088258,0.4946,4761.8,4761.5,3.66]
[1755929088430,0.4946,4761.8,4761.7,3.0]
[1755929088632,0.3069,4761.8,4761.7,3.7648]
[1755929088942,0.02,4761.8,4761.7,3.7648]
[1755929089137,0.02,4761.8,4761.7,5.8735566]
[1755929089761,0.4746,4762.8,4762.0,0.66]
[1755929089930,0.4746,4762.8,4762.7,0.1048]
[1755929090260,0.7615,4762.8,4762.7,8.2418]
[1755929091325,0.7615,4762.8,4762.7,8.9018]
[1755929091741,0.7615,4762.8,4762.7,9.53244]
[1755929092463,0.7615,4762.8,4762.7,10.485684]
[1755929094050,0.7615,4762.8,4762.7,10.484684]
[1755929096334,0.7625,4762.8,4762.7,10.484684]
[1755929097371,0.2879,4762.8,4762.7,19.70745003]
[1755929098039,0.7625,4762.8,4762.7,19.70745003]
[1755929099463,0.7625,4762.8,4762.7,16.18545003]
[1755929099870,0.7625,4762.8,4762.7,19.70645003]
[1755929100253,0.2879,4762.8,4762.7,16.18545003]
[1755929100443,0.7625,4762.8,4762.7,19.70645003]
[1755929101162,0.7625,4762.8,4762.7,10.483684]
[1755929101568,0.7625,4762.8,4762.7,6.962684]
[1755929102077,0.7625,4762.8,4762.7,10.483684]
[1755929102589,0.7625,4762.8,4762.7,3.962684]
[1755929102777,0.7625,4762.8,4762.7,6.53044]
[1755929102953,0.7625,4762.8,4762.7,3.00944]
[1755929103283,0.7625,4762.8,4762.7,6.53044]
[1755929103786,0.7625,4762.8,4762.7,2.34944]
[1755929104084,0.7625,4762.8,4761.2,5.046]
[1755929104085,0.7625,4762.8,4762.0,1.614]
[1755929104282,0.4746,4762.7,4762.5,0.1048]
[1755929104596,0.4746,4762.7,4762.6,3.521]
[1755929105100,0.7615,4762.7,4762.6,3.521]
[1755929106452,0.001,4762.8,4762.6,4.181]
[1755929106652,0.001,4762.8,4762.7,1.04357649]
[1755929107073,0.001,4762.8,4762.7,1.02258]
[1755929107478,0.001,4762.8,4762.7,4.02258]
[1755929108069,0.7625,4762.8,4762.7,7.54258]
[1755929108973,0.7625,4762.8,4762.6,0.1048]
[1755929109280,0.4746,4762.7,4762.6,0.1048]
[1755929109493,0.7615,4762.7,4762.6,7.2848]
[1755929110551,0.2869,4762.7,4762.6,7.2848]
[1755929110956,0.7615,4762.7,4762.6,3.7648]
[1755929111185,0.7615,4762.7,4762.6,6.6248]
[1755929112173,0.7615,4762.7,4762.6,7.28728]
[1755929112362,0.7615,4762.7,4762.6,3.6248]
[1755929113667,0.7615,4762.7,4762.6,0.1048]
[1755929114071,0.7615,4762.7,4762.6,3.6248]
[1755929114610,0.7615,4762.7,4762.6,0.1048]
[1755929114794,0.7615,4762.7,4762.5,3.52]
[1755929114961,0.2869,4762.7,4762.3,0.1048]
[1755929115161,0.4746,4762.6,4762.4,3.52]
[1755929115457,0.2869,4762.5,4762.4,3.52]
[1755929115659,0.7615,4762.5,4762.3,0.1048]
[1755929115875,0.7615,4762.5,4762.4,3.52]
[1755929116096,0.7615,4762.5,4762.3,0.1048]
[1755929116298,0.4746,4762.4,4762.3,3.6248]
[1755929116520,0.7615,4762.4,4762.3,3.6248]
[1755929118308,0.2869,4762.4,4762.3,3.6248]
[1755929118492,0.7163,4762.4,4762.3,4.14262366]
[1755929118693,0.7163,4762.4,4762.3,3.6248]
[1755929119099,0.001,4762.8,4762.3,3.6248]
[1755929119100,0.001,4762.8,4762.3,3.9354]
[1755929119513,0.001,4762.8,4762.7,0.1048]
[1755929119726,0.001,4762.8,4762.7,3.9354]
[1755929120025,0.001,4762.8,4762.7,4.32894]
[1755929120599,0.001,4762.8,4762.7,0.80894]
[1755929120929,0.001,4762.8,4762.7,3.9354]
[1755929121228,0.001,4762.8,4762.7,0.4154]
[1755929121395,0.001,4762.8,4762.7,3.9354]
[1755929122597,0.001,4762.8,4762.7,4.5954]
[1755929122804,0.001,4762.8,4762.7,17.59416336]
[1755929123030,0.001,4762.8,4762.7,19.46228237]
[1755929123911,0.001,4762.8,4762.7,19.00698237]
[1755929124401,0.001,4762.8,4762.7,15.48698237]
[1755929124600,0.001,4762.8,4762.7,19.00698237]
[1755929129548,0.001,4762.8,4762.7,19.00598237]
[1755929130517,0.001,4762.8,4762.7,15.48698237]
[1755929130837,0.7288,4762.8,4762.7,5.38321634]
[1755929131030,0.2994,4762.8,4762.7,3.519]
[1755929131544,0.001,4762.8,4762.7,4.4896]
[1755929132219,0.001,4762.8,4762.7,4.573682]
[1755929133231,0.001,4762.8,4762.7,7.59467849]
[1755929133541,0.001,4762.8,4762.7,10.01072645]
[1755929133840,0.001,4762.8,4762.7,9.55542645]
[1755929141100,0.001,4762.8,4762.7,9.66022645]
[1755929141466,0.001,4762.8,4762.7,9.34962645]
[1755929141668,0.1912,4765.4,4762.9,0.66]
[1755929141888,0.2984,4763.0,4762.9,0.66]
[1755929142198,0.2984,4763.0,4762.9,10.2049648]
[1755929144289,0.2984,4763.0,4762.9,6.6859648]
[1755929144480,0.2984,4763.0,4762.9,10.2049648]
[1755929146403,0.7278,4763.0,4762.9,10.2049648]
[1755929146604,0.7298,4763.0,4762.9,10.2049648]
[1755929148205,0.7298,4763.0,4762.9,6.6859648]
[1755929148397,0.7298,4763.0,4762.9,8.8978]
[1755929148705,0.7557,4763.0,4762.9,8.8978]
[1755929149978,0.7557,4763.0,4762.9,5.3788]
[1755929150175,0.7557,4763.0,4762.9,8.8978]
[1755929150612,0.7557,4763.0,4762.9,0.1048]
[1755929150798,0.7557,4763.0,4762.9,3.6238]
[1755929151824,0.7557,4763.0,4762.9,4.14758]
[1755929152474,0.3004,4763.0,4762.9,4.14758]
[1755929152884,0.7557,4763.0,4762.9,4.14758]
[1755929157334,0.002,4763.0,4762.9,4.45508]
[1755929157703,0.002,4763.0,4762.9,4.14758]
[1755929158200,0.0056,4763.0,4762.9,4.14758]
[1755929159703,0.002,4763.0,4762.9,4.45508]
[1755929161400,0.002,4763.0,4762.9,5.13607561]
[1755929161619,0.002,4763.0,4762.9,5.58118]
[1755929163264,0.002,4763.0,4762.9,8.90187733]
[1755929163568,0.002,4763.0,4762.9,8.58118]
[1755929165426,0.002,4763.0,4762.9,7.80758]
[1755929165765,0.2994,4763.0,4762.9,4.28858]
[1755929166261,0.7547,4763.0,4762.9,0.1048]
[1755929166448,0.7547,4763.0,4762.9,3.6228]
[1755929166978,0.002,4763.0,4762.9,3.6228]
[1755929167184,0.002,4763.0,4762.9,4.61129561]
[1755929167331,0.002,4763.0,4762.9,5.0564]
[1755929167534,0.002,4763.0,4762.9,5.62074]
[1755929167839,0.002,4763.0,4762.9,9.04623733]
[1755929168160,0.002,4763.0,4762.9,8.72554]
[1755929170787,0.2993,4764.1,4763.0,3.66]
[1755929170961,0.2993,4764.1,4763.2,0.66]
[1755929171157,0.2993,4764.1,4764.0,0.1048]
[1755929171344,0.5967,4764.1,4764.0,3.6228]
[1755929176153,0.2974,4764.1,4764.0,3.6228]
[1755929177084,0.4553,4764.5,4764.0,3.6228]
[1755929177282,0.4553,4764.5,4764.4,0.1048]
[1755929177610,0.7527,4764.5,4764.4,3.6228]
[1755929177897,0.02,4764.8,4764.4,3.9303]
[1755929178257,0.02,4764.8,4764.7,0.1048]
[1755929178462,0.3236,4764.8,4764.7,3.6228]
[1755929178874,0.7868,4764.8,4764.7,3.6228]
[1755929179281,0.3236,4764.8,4764.7,3.6228]
[1755929181399,0.3236,4764.8,4764.7,4.14648]
[1755929181897,0.3256,4764.8,4764.7,4.14648]
[1755929182058,0.022,4764.8,4764.7,4.14648]
[1755929182700,0.3256,4764.8,4764.7,4.14648]
[1755929182903,0.3256,4764.8,4764.7,3.6228]
[1755929185462,0.022,4764.8,4764.7,3.6228]
[1755929185680,0.022,4764.8,4764.7,3.9373]
[1755929185891,0.022,4764.8,4764.7,4.4068]
[1755929186198,0.022,4764.8,4764.7,3.9373]
[1755929186396,0.022,4764.8,4764.7,4.54147886]
[1755929186798,0.022,4764.8,4764.7,5.01097886]
[1755929188306,0.022,4764.8,4764.7,5.67097886]
[1755929191470,0.022,4764.8,4764.7,5.20147886]
[1755929192594,0.3256,4764.8,4764.7,4.22497886]
[1755929192768,0.7888,4764.8,4764.7,4.22497886]
[1755929192970,0.7888,4764.8,4764.7,0.70897886]
[1755929193514,0.7888,4764.8,4764.7,3.6208]
[1755929195487,0.7888,4764.8,4764.7,0.1048]
[1755929195696,0.7888,4764.8,4764.7,3.6208]
[1755929199004,0.7888,4764.8,4764.7,0.1048]
[1755929199476,0.7888,4764.8,4764.4,1.614]
[1755929199680,0.568,4764.7,4764.5,3.516]
[1755929199895,0.3036,4764.6,4764.5,3.516]
[1755929200091,0.7668,4764.6,4764.5,3.516]
[1755929205417,0.022,4764.8,4764.5,3.516]
[1755929205624,0.022,4764.8,4764.5,3.6208]
[1755929206182,0.022,4764.8,4764.7,0.3145]
[1755929206508,0.022,4764.8,4764.7,3.8305]
[1755929206895,0.022,4764.8,4764.7,4.3]
[1755929207105,0.022,4764.8,4764.7,5.0648]
[1755929208219,0.022,4764.8,4764.7,3.9353]
[1755929208587,0.022,4764.8,4764.7,0.1048]
[1755929208588,0.673,4764.8,4764.7,0.1048]
[1755929208798,0.673,4764.8,4764.4,3.516]
[1755929208981,0.4706,4764.7,4764.4,3.516]
[1755929209211,0.022,4764.8,4764.4,3.516]
[1755929209527,0.022,4764.8,4764.7,0.3028]
[1755929209825,0.022,4764.8,4764.7,3.83978768]
[1755929210025,0.022,4764.8,4764.7,4.2619]
[1755929210372,0.022,4764.8,4764.7,4.3667]
[1755929211609,0.022,4764.8,4764.7,4.38768768]
[1755929211808,0.022,4764.8,4764.7,5.02840545]
[1755929211992,0.022,4764.8,4764.7,5.00741777]
[1755929213831,0.022,4764.8,4764.7,5.66741777]
[1755929214430,0.022,4764.8,4764.7,8.66741777]
[1755929223947,0.022,4764.8,4764.7,8.9881151]
[1755929224526,0.022,4764.8,4764.7,5.4721151]
[1755929224728,0.022,4764.8,4764.7,8.66541777]
[1755929225210,0.022,4764.8,4764.7,8.9861151]
[1755929226239,0.022,4764.8,4764.7,5.4721151]
[1755929226538,0.022,4764.8,4764.7,8.9861151]